fUSD/lending_fUSD_20260106
["ID","MTS","AMOUNT","RATE_DAILY","PERIOD"]
[400579544,1767731445486,-4392.1836343,0.0002739,7]
[400579546,1767731445496,-483.90356709,0.00027397,39]
[400579548,1767731445507,-404.8,0.00027397,7]
[400579550,1767731445520,-377.0,0.00027397,7]
[400579552,1767731445531,-150.0,0.00027397,5]
[400579554,1767731445541,-300.0,0.00027399,10]
[400579556,1767731445550,-1983.0,0.000274,2]
[400579558,1767731445561,-68324.11,0.000274,2]
[400579560,1767731445573,-3726.04,0.00027671,2]
[400579562,1767731445584,-500.0,0.00027698,2]
[400579564,1767731445595,-500.0,0.00027698,2]
[400579566,1767731445605,-500.0,0.00027698,2]
[400579568,1767731445616,-354.11325635,0.00027698,2]
[400579570,1767731445626,-500.0,0.00027698,2]
[400579572,1767731445636,-500.0,0.00027698,2]
[400579574,1767731445646,-500.0,0.00027698,2]
[400579576,1767731445656,-500.0,0.00027698,2]
[400579578,1767731445666,-500.0,0.00027698,2]
[400579580,1767731445676,-500.0,0.00027698,2]
[400579582,1767731445686,-500.0,0.00027698,2]
[400579584,1767731445696,-500.0,0.00027698,2]
[400579586,1767731445706,-500.0,0.00027698,2]
[400579588,1767731445715,-500.0,0.00027698,2]
[400579590,1767731445725,-500.0,0.00027698,2]
[400579593,1767731445734,-500.0,0.00027698,2]
[400579595,1767731445744,-500.0,0.00027698,2]
[400579597,1767731445754,-500.0,0.00027698,2]
[400579599,1767731445763,-500.0,0.00027698,2]
[400579601,1767731445773,-500.0,0.00027698,2]
[400579603,1767731445784,-500.0,0.00027698,2]
[400579605,1767731445794,-500.0,0.00027698,2]
[400579607,1767731445804,-500.0,0.00027698,2]
[400579609,1767731445813,-200.0,0.00027698,2]
[400579611,1767731445822,-207.4,0.00027698,2]
[400579613,1767731445832,-215.0738,0.00027698,2]
[400579615,1767731445842,-223.0315306,0.00027698,2]
[400579617,1767731445852,-231.28369723,0.00027698,2]
[400579619,1767731445861,-239.84119403,0.00027698,2]
[400579621,1767731445870,-248.71531821,0.00027698,2]
[400579623,1767731445880,-257.91778498,0.00027698,2]
[400579625,1767731445890,-267.46074303,0.00027698,2]
[400579627,1767731445899,-277.35679052,0.00027698,2]
[400579629,1767731445908,-423.34607416,0.00027919,2]
[400579631,1767731445919,-250.0,0.00027945,5]
[400579633,1767731445928,-1233.336175,0.00028,60]
[400579635,1767731445937,-535.04449244,0.00028069,2]
[400579637,1767731445947,-1268.108,0.00028348,2]
[400579639,1767731445956,-438.455,0.00028348,2]
[400579641,1767731445966,-1215.798,0.00028348,2]
[400579642,1767731445975,-914.0,0.00028348,2]
[400579643,1767731445985,-350.0,0.00028493,5]
[400579644,1767731445995,-614.0,0.00028609,2]
[400579645,1767731446004,-3466.0,0.00028609,2]
[400579646,1767731446014,-1329.0,0.00028609,2]
[400579647,1767731446024,-2629.6,0.00028859,2]
[400579648,1767731446034,-450.0,0.00029041,5]
[400579649,1767731446044,-287.61899177,0.00029067,2]
[400579651,1767731446054,-155.55,0.00029182,2]
[400579653,1767731446063,-13232.69191786,0.000295,7]
[400579655,1767731446073,-432.31509578,0.00029589,5]
[400579656,1767731446083,-1000.0,0.00029803,2]
[400579657,1767731446092,-502.0,0.00029877,2]
[400579658,1767731446102,-155.07,0.00029971,2]
[400579659,1767731446112,-2000.0,0.0003,14]
[400579660,1767731446121,-816.71249994,0.0003,5]
[400579661,1767731446131,-1504.03248546,0.0003013,5]
[400579662,1767731446141,-300.0,0.00030199,10]
[400579663,1767731446150,-245.98,0.000302,30]
[400579664,1767731446159,-68324.11,0.000302,2]
[400579665,1767731446169,-298.26089446,0.00030436,2]
[400579666,1767731446179,-178.61513242,0.0003063,6]
[400579667,1767731446188,-3088.29445144,0.0003063,2]
[400579668,1767731446198,-2629.6,0.00030946,2]
[400579669,1767731446207,-341.57506105,0.00031,5]
[400579670,1767731446217,-207.37868972,0.00031062,2]
[400579671,1767731446226,-1983.10251088,0.000311,2]
[400579672,1767731446235,-1266.0,0.00031348,2]
[400579673,1767731446245,-433.0,0.00031348,2]
[400579674,1767731446255,-1200.0,0.00031348,2]
[400579675,1767731446265,-914.0,0.00031348,2]
[400579676,1767731446275,-502.0,0.00031351,3]
[400579677,1767731446284,-4736.98,0.000314,7]
[400579678,1767731446294,-8301.84221811,0.0003143,4]
[400579679,1767731446304,-614.0,0.00031609,2]
[400579680,1767731446314,-3466.0,0.00031609,2]
[400579681,1767731446323,-1329.0,0.00031609,2]
[400579683,1767731446333,-423.34607416,0.00031779,2]
[400579685,1767731446342,-309.29654756,0.00031805,2]
[400579687,1767731446352,-535.04449244,0.00031893,2]
[400579689,1767731446361,-1149.33629094,0.00032213,5]
[400579691,1767731446371,-1049.43181918,0.00032213,5]
[400579692,1767731446380,-1041.43278484,0.00032213,5]
[400579693,1767731446390,-1058.01831359,0.00032213,5]
[400579704,1767731446584,-1135.22751505,0.00032213,5]
[400579706,1767731446594,-1095.63770102,0.00032213,5]
[400579708,1767731446606,-1130.86519036,0.00032213,5]
[400579710,1767731446616,-502.0,0.00032825,5]
[400579712,1767731446626,-803.7588,0.0003287,2]
[400579714,1767731446636,-200.0,0.0003287,2]
[400579715,1767731446645,-448.37709265,0.00032876,2]
[400579717,1767731446654,-500.0,0.00032876,2]
[400579719,1767731446664,-500.0,0.00032876,2]
[400579721,1767731446673,-604.35814479,0.00032876,2]
[400579723,1767731446683,-631.4889163,0.00032876,2]
[400579726,1767731446692,-200.0,0.00032876,2]
[400579727,1767731446701,-343.53,0.00032877,2]
[400579729,1767731446711,-501.0483089,0.00032877,5]
[400579731,1767731446720,-500.0,0.00032877,7]
[400579733,1767731446731,-500.0,0.00032877,7]
[400579735,1767731446740,-500.0,0.00032877,7]
[400579737,1767731446749,-500.0,0.00032877,7]
[400579738,1767731446758,-200.0,0.00032877,7]
[400579739,1767731446767,-500.0,0.00032877,7]
[400579740,1767731446776,-500.0,0.00032877,7]
[400579741,1767731446785,-500.0,0.00032877,7]
[400579742,1767731446795,-500.0,0.00032877,7]
[400579743,1767731446804,-500.0,0.00032877,7]
[400579744,1767731446812,-500.0,0.00032877,7]
[400579745,1767731446822,-500.0,0.00032877,7]
[400579746,1767731446831,-500.0,0.00032877,7]
[400579747,1767731446840,-500.0,0.00032877,7]
[400579748,1767731446849,-500.0,0.00032877,7]
[400579749,1767731446858,-500.0,0.00032877,7]
[400579750,1767731446867,-500.0,0.00032877,7]
[400579751,1767731446876,-500.0,0.00032877,7]
[400579752,1767731446886,-500.0,0.00032877,7]
[400579753,1767731446896,-500.0,0.00032877,7]
[400579754,1767731446905,-500.0,0.00032877,7]
[400579755,1767731446916,-500.0,0.00032877,7]
[400579756,1767731446925,-500.0,0.00032877,7]
[400579757,1767731446935,-500.0,0.00032877,7]
[400579758,1767731446944,-500.0,0.00032877,7]
[400579759,1767731446953,-500.0,0.00032877,7]
[400579760,1767731446962,-500.0,0.00032877,7]
[400579761,1767731446971,-500.0,0.00032877,7]
[400579762,1767731446980,-500.0,0.00032877,7]
[400579763,1767731446989,-500.0,0.00032877,7]
[400579764,1767731446997,-500.0,0.00032877,7]
[400579765,1767731447006,-500.0,0.00032877,7]
[400579766,1767731447016,-500.0,0.00032877,7]
[400579767,1767731447025,-500.0,0.00032877,7]
[400579768,1767731447035,-500.0,0.00032877,7]
[400579769,1767731447044,-500.0,0.00032877,7]
[400579770,1767731447053,-500.0,0.00032877,7]
[400579771,1767731447062,-500.0,0.00032877,7]
[400579772,1767731447071,-500.0,0.00032877,7]
[400579773,1767731447081,-500.0,0.00032877,7]
[400579774,1767731447090,-500.0,0.00032877,7]
[400579775,1767731447099,-500.0,0.00032877,7]
[400579776,1767731447108,-500.0,0.00032877,7]
[400579777,1767731447117,-502.85896211,0.00032877,7]
[400579778,1767731447127,-500.0,0.00032877,7]
[400579779,1767731447135,-500.0,0.00032877,7]
[400579780,1767731447144,-500.0,0.00032877,7]
[400579781,1767731447153,-500.0,0.00032877,7]
[400579782,1767731447162,-500.0,0.00032877,7]
[400579783,1767731447174,-500.0,0.00032877,7]
[400579784,1767731447183,-500.0,0.00032877,7]
[400579785,1767731447193,-500.0,0.00032877,7]
[400579786,1767731447202,-500.0,0.00032877,7]
[400579787,1767731447212,-500.0,0.00032877,7]
[400579788,1767731447222,-500.0,0.00032877,7]
[400579789,1767731447231,-500.0,0.00032877,7]
[400579790,1767731447241,-500.0,0.00032877,7]
[400579791,1767731447250,-500.0,0.00032877,7]
[400579792,1767731447259,-500.0,0.00032877,7]
[400579793,1767731447268,-500.0,0.00032877,7]
[400579794,1767731447276,-500.0,0.00032877,7]
[400579795,1767731447285,-500.0,0.00032877,7]
[400579796,1767731447294,-500.0,0.00032877,7]
[400579797,1767731447304,-500.0,0.00032877,7]
[400579798,1767731447313,-500.0,0.00032877,7]
[400579799,1767731447322,-500.0,0.00032877,7]
[400579800,1767731447331,-500.0,0.00032877,7]
[400579801,1767731447340,-300.0,0.00032877,7]
[400579802,1767731447349,-670.42,0.000329,14]
[400579803,1767731447358,-594.2,0.000329,14]
[400579804,1767731447367,-3052.99,0.000329,2]
[400579805,1767731447377,-300.0,0.00032999,10]
[400579806,1767731447386,-187.1270293,0.00033,30]
[400579807,1767731447395,-51125.40259919,0.00033,2]
[400579808,1767731447404,-26289.76664934,0.00033,2]
[400579809,1767731447413,-51405.61485821,0.00033,2]
[400579810,1767731447424,-153.01341138,0.00033,2]
[400579811,1767731447433,-2629.6,0.00033032,3]
[400579812,1767731447442,-320.74051982,0.00033174,2]
[400579813,1767731447452,-200.0,0.00033199,2]
[400579814,1767731447462,-1207.15046117,0.000335,2]
[400579815,1767731447474,-200.0,0.00033531,2]
[400579816,1767731447483,-13125.0,0.000338,2]
[400579817,1767731447493,-200.0,0.00033866,2]
[400579818,1767731447503,-325.97778318,0.00034,2]
[400579819,1767731447512,-772.98909842,0.00034,7]
[400579820,1767731447526,-1909.29605499,0.00034,2]
[400579821,1767731447536,-150.44,0.000341,6]
[400579822,1767731447546,-200.0,0.00034205,2]
[400579823,1767731447555,-502.0,0.00034299,7]
[400579824,1767731447567,-1266.0,0.00034348,2]
[400579825,1767731447576,-433.0,0.00034348,2]
[400579826,1767731447585,-1200.0,0.00034348,2]
[400579827,1767731447598,-911.0,0.00034348,2]
[400579828,1767731447608,-500.0,0.00034389,120]
[400579829,1767731447618,-500.0,0.00034389,120]
[400579830,1767731447627,-5532.0,0.000344,3]
[400579831,1767731447637,-1725.60731908,0.0003449,2]
[400579832,1767731447647,-5000.0,0.000345,14]
[400579833,1767731447656,-3910.0,0.00034527,5]
[400579834,1767731447666,-332.60791905,0.00034543,2]
[400579835,1767731447676,-304.13144408,0.00034604,3]
[400579836,1767731447686,-613.0,0.00034609,2]
[400579837,1767731447695,-3466.0,0.00034609,2]
[400579838,1767731447704,-1329.0,0.00034609,2]
[400579839,1767731447714,-68324.11,0.000347,2]
[400579840,1767731447723,-236.74555436,0.00034833,13]
[400579841,1767731447733,-6505.11467841,0.00034852,60]
[400579842,1767731447742,-354.5798613,0.0003488,120]
[400579843,1767731447751,-8532.61725714,0.00035,30]
[400579844,1767731447761,-8934.93308171,0.00035,30]
[400579845,1767731447770,-1911.22125804,0.00035,2]
[400579846,1767731447779,-178.13204382,0.00035,120]
[400579847,1767731447789,-1000.0,0.00035,7]
[400579848,1767731447799,-5532.0,0.000351,5]
[400579849,1767731447809,-2629.6,0.00035119,4]
[400579850,1767731447818,-416.9074,0.0003522,30]
[400579851,1767731447827,-594.2,0.000353,14]
[400579852,1767731447836,-4736.98,0.000353,14]
[400579853,1767731447845,-2500.0,0.000353,14]
[400579854,1767731447854,-155.55,0.00035303,2]
[400579855,1767731447863,-30735.14588313,0.0003561,2]
[400579856,1767731447872,-607.2,0.00035616,19]
[400579857,1767731447881,-362.92767531,0.00035616,93]
[400579858,1767731447890,-565.5,0.00035616,43]
[400579859,1767731447899,-300.0,0.00035616,5]
[400579860,1767731447908,-500.0,0.00035616,7]
[400579861,1767731447917,-500.0,0.00035616,7]
[400579862,1767731447926,-500.0,0.00035616,7]
[400579863,1767731447935,-625.07659591,0.00035616,7]
[400579864,1767731447944,-500.0,0.00035616,7]
[400579865,1767731447953,-500.0,0.00035616,7]
[400579866,1767731447962,-500.0,0.00035616,7]
[400579867,1767731447971,-500.0,0.00035616,7]
[400579868,1767731447980,-500.0,0.00035616,7]
[400579869,1767731447989,-293.45814038,0.00035616,7]
[400579870,1767731447999,-500.0,0.00035616,7]
[400579871,1767731448008,-500.0,0.00035616,7]
[400579872,1767731448017,-500.0,0.00035616,7]
[400579873,1767731448027,-500.0,0.00035616,7]
[400579874,1767731448036,-500.0,0.00035616,7]
[400579875,1767731448045,-500.0,0.00035616,7]
[400579876,1767731448054,-500.0,0.00035616,7]
[400579877,1767731448063,-500.0,0.00035616,7]
[400579878,1767731448072,-500.0,0.00035616,7]
[400579879,1767731448081,-155.07,0.00035698,2]
[400579880,1767731448090,-3052.99,0.000357,2]
[400579881,1767731448100,-535.04449244,0.00035716,2]
[400579882,1767731448109,-502.0,0.00035774,8]
[400579883,1767731448118,-909.02,0.000358,30]
[400579884,1767731448127,-258.58211069,0.00035912,2]
[400579885,1767731448136,-670.42,0.000362,14]
[400579886,1767731448145,-161.18,0.00036331,2]
[400579887,1767731448153,-600.0,0.00036438,5]
[400579888,1767731448162,-73152.9651395,0.00037,7]
[400579889,1767731448172,-2629.6,0.00037205,5]
[400579890,1767731448182,-152.0,0.00037217,3]
[400579891,1767731448191,-502.0,0.00037248,10]
[400579892,1767731448200,-900.0,0.0003726,5]
[400579893,1767731448209,-1266.0,0.00037348,2]
[400579894,1767731448218,-433.0,0.00037348,2]
[400579895,1767731448227,-1200.0,0.00037348,2]
[400579896,1767731448236,-2727.06,0.000376,30]
[400579897,1767731448247,-3466.0,0.00037609,2]
[400579898,1767731448256,-3052.99,0.000378,2]
[400579899,1767731448265,-1000.0,0.000379,2]
[400579900,1767731448275,-215.91,0.000379,2]
[400579901,1767731448285,-594.2,0.000379,14]
[400579902,1767731448299,-70446.14347067,0.000379,30]
[400579903,1767731448309,-384.68,0.00038,120]
[400579904,1767731448321,-612.0,0.00038,2]
[400579905,1767731448332,-200.0,0.00038,2]
[400579906,1767731448342,-300.0,0.00038,2]
[400579907,1767731448352,-978.0,0.00038,2]
[400579908,1767731448363,-237.12745582,0.00038039,120]
[400579909,1767731448373,-1200.0,0.00038082,5]
[400579910,1767731448382,-500.0,0.00038106,30]
[400579911,1767731448393,-500.0,0.00038133,30]
[400579912,1767731448402,-1040.33613482,0.00038142,20]
[400579913,1767731448413,-1007.57256982,0.00038142,20]
[400579914,1767731448428,-1028.8063755,0.00038142,20]
[400579915,1767731448438,-1548.64317562,0.00038142,20]
[400579916,1767731448448,-1000.0,0.00038356,5]
[400579917,1767731448460,-670.42,0.000384,14]
[400579918,1767731448470,-23867.78819424,0.000385,30]
[400579919,1767731448479,-502.0,0.00038722,12]
[400579920,1767731448488,-992.86947112,0.00038767,5]
[400579921,1767731448498,-462.2012,0.00038888,30]
[400579922,1767731448507,-3726.04,0.00038904,2]
[400579923,1767731448516,-1500.0,0.00038904,5]
[400579924,1767731448528,-419.29818059,0.00039,10]
[400579925,1767731448539,-1713.54772393,0.00039,2]
[400579926,1767731448549,-287652.30678526,0.00039,120]
[400579927,1767731448558,-151.0,0.00039,120]
[400579928,1767731448568,-151.0,0.00039,120]
[400579929,1767731448578,-151.0,0.00039,120]
[400579930,1767731448588,-151.0,0.00039,120]
[400579931,1767731448597,-151.0,0.00039,120]
[400579932,1767731448608,-151.0,0.00039,120]
[400579933,1767731448617,-153.782534,0.00039,120]
[400579934,1767731448628,-151.0,0.00039,120]
[400579935,1767731448638,-151.0,0.00039,120]
[400579936,1767731448647,-151.0,0.00039,120]
[400579937,1767731448659,-151.0,0.00039,120]
[400579938,1767731448672,-151.0,0.00039,120]
[400579939,1767731448681,-151.0,0.00039,120]
[400579940,1767731448690,-151.0,0.00039,120]
[400579941,1767731448699,-151.0,0.00039,120]
[400579942,1767731448709,-232.966659,0.00039,120]
[400579943,1767731448718,-151.0,0.00039,120]
[400579944,1767731448727,-151.0,0.00039,120]
[400579945,1767731448736,-232.966659,0.00039,120]
[400579946,1767731448745,-151.0,0.00039,120]
[400579947,1767731448754,-229.198652,0.00039,120]
[400579948,1767731448763,-232.966659,0.00039,120]
[400579949,1767731448771,-232.966659,0.00039,120]
[400579950,1767731448780,-163.515507,0.00039,120]
[400579951,1767731448789,-151.0,0.00039,120]
[400579952,1767731448798,-151.0,0.00039,120]
[400579953,1767731448807,-185.600499,0.00039,120]
[400579954,1767731448815,-151.0,0.00039,120]
[400579955,1767731448825,-151.0,0.00039,120]
[400579956,1767731448834,-151.0,0.00039,120]
[400579957,1767731448843,-151.0,0.00039,120]
[400579958,1767731448853,-321.09479,0.00039,120]
[400579959,1767731448862,-151.0,0.00039,120]
[400579960,1767731448872,-151.0,0.00039,120]
[400579961,1767731448881,-321.09479,0.00039,120]
[400579962,1767731448891,-151.0,0.00039,120]
[400579963,1767731448900,-321.09479,0.00039,120]
[400579964,1767731448909,-151.0,0.00039,120]
[400579965,1767731448920,-321.09479,0.00039,120]
[400579966,1767731448929,-151.0,0.00039,120]
[400579967,1767731448938,-151.0,0.00039,120]
[400579968,1767731448947,-151.0,0.00039,120]
[400579969,1767731448956,-151.0,0.00039,120]
[400579970,1767731448965,-151.0,0.00039,120]
[400579971,1767731448973,-151.0,0.00039,120]
[400579972,1767731448982,-151.0,0.00039,120]
[400579973,1767731448991,-1567.694092,0.00039041,120]
[400579974,1767731449000,-1567.694092,0.00039041,120]
[400579975,1767731449010,-1567.694092,0.00039041,120]
[400579976,1767731449018,-1567.694092,0.00039041,120]
[400579977,1767731449028,-1551.65362228,0.00039116,2]
[400579978,1767731449036,-1551.65362228,0.00039116,2]
[400579979,1767731449046,-200.0,0.00039117,2]
[400579980,1767731449054,-200.0,0.00039117,2]
[400579981,1767731449064,-200.0,0.00039117,2]
[400579982,1767731449072,-200.0,0.00039117,2]
[400579983,1767731449082,-200.0,0.00039117,2]
[400579984,1767731449091,-200.0,0.00039117,2]
[400579985,1767731449100,-200.0,0.00039117,2]
[400579986,1767731449109,-200.0,0.00039117,2]
[400579987,1767731449118,-200.0,0.00039117,2]
[400579988,1767731449128,-200.0,0.00039117,2]
[400579989,1767731449137,-200.0,0.00039117,2]
[400579990,1767731449147,-200.0,0.00039117,2]
[400579991,1767731449156,-200.0,0.00039117,2]
[400579992,1767731449166,-200.0,0.00039117,2]
[400579993,1767731449175,-200.0,0.00039117,2]
[400579994,1767731449185,-200.0,0.00039117,2]
[400579995,1767731449194,-200.0,0.00039117,2]
[400579996,1767731449204,-200.0,0.00039117,2]
[400579997,1767731449213,-200.0,0.00039117,2]
[400579998,1767731449222,-200.0,0.00039117,2]
[400579999,1767731449231,-200.0,0.00039117,2]
[400580000,1767731449240,-200.0,0.00039117,2]
[400580001,1767731449249,-200.0,0.00039117,2]
[400580002,1767731449259,-200.0,0.00039117,2]
[400580003,1767731449267,-200.0,0.00039117,2]
[400580004,1767731449277,-200.0,0.00039117,2]
[400580005,1767731449286,-200.0,0.00039117,2]
[400580006,1767731449295,-200.0,0.00039117,2]
[400580007,1767731449304,-200.0,0.00039117,2]
[400580008,1767731449313,-200.0,0.00039117,2]
[400580009,1767731449322,-200.0,0.00039117,2]
[400580010,1767731449332,-200.0,0.00039117,2]
[400580011,1767731449341,-200.0,0.00039117,2]
[400580012,1767731449351,-200.0,0.00039117,2]
[400580013,1767731449360,-200.0,0.00039117,2]
[400580014,1767731449370,-200.0,0.00039117,2]
[400580015,1767731449379,-170.0,0.00039117,2]
[400580016,1767731449388,-2629.6,0.00039291,6]
[400580017,1767731449397,-3052.99,0.000393,30]
[400580018,1767731449407,-500.0,0.00039308,120]
[400580019,1767731449416,-500.0,0.00039308,120]
[400580020,1767731449426,-594.2,0.000394,14]
[400580021,1767731449435,-535.04449244,0.0003954,2]
[400580022,1767731449445,-1000.0,0.000396,7]
[400580023,1767731449454,-1697.95,0.00039612,55]
[400580024,1767731449463,-1306.08924953,0.00039726,5]
[400580025,1767731449472,-10000.0,0.000399,2]
[400580026,1767731449645,-65484.23252267,0.000399,30]
[400580027,1767731449655,-320596.51408153,0.000399,120]
[400580028,1767731449665,-151.0,0.000399,120]
[400580029,1767731449676,-151.0,0.000399,120]
[400580030,1767731449686,-151.0,0.000399,120]
[400580031,1767731449695,-2540.568595,0.000399,120]
[400580032,1767731449705,-151.0,0.000399,120]
[400580033,1767731449715,-2540.568595,0.000399,120]
[400580034,1767731449724,-2540.568595,0.000399,120]
[400580035,1767731449734,-151.0,0.000399,120]
[400580036,1767731449743,-151.0,0.000399,120]
[400580037,1767731449753,-2540.568595,0.000399,120]
[400580038,1767731449762,-151.0,0.000399,120]
[400580039,1767731449772,-246.069034,0.000399,30]
[400580040,1767731449781,-151.0,0.000399,120]
[400580041,1767731449791,-227.177642,0.000399,120]
[400580042,1767731449800,-227.177642,0.000399,120]
[400580043,1767731449809,-227.177642,0.000399,120]
[400580044,1767731449818,-227.177642,0.000399,120]
[400580045,1767731449827,-151.0,0.000399,120]
[400580046,1767731449837,-151.0,0.000399,120]
[400580047,1767731449846,-151.0,0.000399,120]
[400580048,1767731449855,-151.0,0.000399,120]
[400580049,1767731449865,-151.0,0.000399,7]
[400580050,1767731449874,-151.0,0.000399,7]
[400580051,1767731449884,-151.0,0.000399,7]
[400580052,1767731449893,-274.476026,0.000399,7]
[400580053,1767731449902,-152.0,0.00039935,4]
[400580054,1767731449912,-161.18,0.00039964,2]
[400580055,1767731449922,-383.95014612,0.00039999,31]
[400580056,1767731449931,-452.55688095,0.00039999,7]
[400580057,1767731449940,-500.0,0.00039999,31]
[400580058,1767731449949,-500.0,0.00039999,31]
[400580059,1767731449958,-500.0,0.00039999,15]
[400580060,1767731449967,-500.0,0.00039999,31]
[400580061,1767731449976,-333.81880749,0.00039999,15]
[400580062,1767731449986,-500.0,0.00039999,31]
[400580063,1767731449994,-500.0,0.00039999,31]
[400580064,1767731450003,-500.0,0.00039999,31]
[400580065,1767731450012,-536.46396395,0.00039999,31]
[400580066,1767731450022,-500.0,0.00039999,31]
[400580067,1767731450031,-500.0,0.00039999,31]
[400580068,1767731450040,-500.0,0.00039999,31]
[400580069,1767731450050,-359.62601043,0.00039999,31]
[400580070,1767731450059,-419.11575167,0.00039999,31]
[400580071,1767731450068,-500.0,0.00039999,31]
[400580072,1767731450078,-150.0,0.00039999,31]
[400580073,1767731450087,-347.23073288,0.00039999,15]
[400580074,1767731450096,-500.0,0.00039999,31]
[400580075,1767731450105,-500.0,0.00039999,31]
[400580076,1767731450114,-500.0,0.00039999,31]
[400580077,1767731450124,-300.0,0.00039999,31]
[400580078,1767731450133,-500.0,0.00039999,31]
[400580079,1767731450143,-500.0,0.00039999,31]
[400580080,1767731450153,-500.0,0.00039999,31]
[400580081,1767731450163,-424.17175108,0.00039999,31]
[400580082,1767731450173,-500.0,0.00039999,15]
[400580083,1767731450183,-199.27312671,0.00039999,15]
[400580084,1767731450192,-235.69078344,0.00039999,31]
[400580085,1767731450202,-500.0,0.00039999,31]
[400580086,1767731450211,-192.86247209,0.00039999,31]
[400580087,1767731450220,-500.0,0.00039999,31]
[400580088,1767731450229,-500.0,0.00039999,31]
[400580089,1767731450239,-500.0,0.00039999,31]
[400580090,1767731450249,-500.0,0.00039999,31]
[400580091,1767731450258,-300.0,0.00039999,31]
[400580092,1767731450268,-500.0,0.00039999,31]
[400580093,1767731450277,-444.7621069,0.00039999,31]
[400580094,1767731450286,-500.0,0.00039999,31]
[400580095,1767731450296,-500.0,0.00039999,31]
[400580096,1767731450305,-500.0,0.00039999,31]
[400580097,1767731450315,-594.26905751,0.00039999,31]
[400580098,1767731450324,-425.36639819,0.00039999,15]
[400580099,1767731450334,-160.35085209,0.00039999,31]
[400580100,1767731450343,-450.0,0.00039999,31]
[400580101,1767731450352,-200.0,0.00039999,31]
[400580102,1767731450362,-501.15,0.00039999,14]
[400580103,1767731450371,-199.49149987,0.0004,2]
[400580104,1767731450381,-152.0,0.0004,120]
[400580105,1767731450391,-152.0,0.0004,120]
[400580106,1767731450400,-160.0,0.0004,33]
[400580107,1767731450409,-160.0,0.0004,33]
[400580108,1767731450421,-160.0,0.0004,33]
[400580109,1767731450430,-160.0,0.0004,33]
[400580110,1767731450440,-231.2,0.0004,33]
[400580111,1767731450450,-300.32686327,0.0004,120]
[400580112,1767731450460,-151.16210505,0.0004,30]
[400580113,1767731450469,-919.53,0.0004,12]
[400580114,1767731450480,-4160.56684163,0.0004,30]
[400580115,1767731450490,-541.0,0.0004,120]
[400580116,1767731450499,-1043.44170185,0.0004,14]
[400580117,1767731450508,-2500.0,0.0004,7]
[400580118,1767731450519,-1000.0,0.00040192,7]
[400580119,1767731450530,-502.0,0.00040196,13]
[400580120,1767731450540,-1266.0,0.00040348,2]
[400580121,1767731450549,-433.0,0.00040348,2]
[400580122,1767731450560,-160.0,0.000405,35]
[400580123,1767731450571,-7004.8462969,0.000405,3]
[400580124,1767731450580,-152.0,0.000406,120]
[400580125,1767731450591,-670.42,0.000406,14]
[400580126,1767731450600,-3466.0,0.00040609,2]